[Event "*** Titled Tuesday Blitz"]
[Site "Chess.com"]
[Date "2021.02.09"]
[Round "6"]
[White "ChessFighter1975"]
[Black "LubovMarkelova"]
[Result "0-1"]
[WhiteElo "2416"]
[BlackElo "2263"]
[TimeControl "180+1"]
[EndTime "11:10:02 PST"]
[Termination "LubovMarkelova won by checkmate"]

1. d4 {[%clk 0:03:00.9]} 1... Nf6 {[%clk 0:02:59.5]} 2. c4 {[%clk 0:03:00]} 2...
c5 {[%clk 0:02:58.1]} 3. d5 {[%clk 0:02:59.6]} 3... e6 {[%clk 0:02:57.5]} 4. Nc3
{[%clk 0:02:59.2]} 4... exd5 {[%clk 0:02:57.9]} 5. cxd5 {[%clk 0:03:00.1]} 5...
g6 {[%clk 0:02:57.5]} 6. e4 {[%clk 0:03:00.6]} 6... d6 {[%clk 0:02:54.7]} 7. f4
{[%clk 0:03:01.2]} 7... Bg7 {[%clk 0:02:54.7]} 8. e5 {[%clk 0:03:01.4]} 8...
dxe5 {[%clk 0:02:52.7]} 9. fxe5 {[%clk 0:03:02.3]} 9... Ng4 {[%clk 0:02:52.2]}
10. e6 {[%clk 0:03:02.6]} 10... h5 {[%clk 0:02:37.9]} 11. Bb5+ {[%clk
0:02:59.7]} 11... Kf8 {[%clk 0:02:35.1]} 12. Nf3 {[%clk 0:02:59.6]} 12... a6
{[%clk 0:02:17.9]} 13. O-O {[%clk 0:02:58.9]} 13... axb5 {[%clk 0:02:14.2]} 14.
Ng5 {[%clk 0:02:58.5]} 14... f5 {[%clk 0:02:14]} 15. d6 {[%clk 0:01:57.2]} 15...
Bd4+ {[%clk 0:02:11.4]} 16. Qxd4 {[%clk 0:01:57.4]} 16... cxd4 {[%clk
0:02:11.3]} 17. e7+ {[%clk 0:01:57.8]} 17... Qxe7 {[%clk 0:02:11.8]} 18. dxe7+
{[%clk 0:01:58.6]} 18... Kxe7 {[%clk 0:02:12.6]} 19. Nxb5 {[%clk 0:01:57.3]}
19... Nc6 {[%clk 0:02:06]} 20. Bf4 {[%clk 0:01:47.7]} 20... Bd7 {[%clk 0:01:43]}
21. Rfe1+ {[%clk 0:01:46.9]} 21... Kf6 {[%clk 0:01:42.3]} 22. h3 {[%clk
0:01:39.2]} 22... Ne3 {[%clk 0:01:42.1]} 23. Re2 {[%clk 0:00:47.4]} 23... Nd5
{[%clk 0:01:23.9]} 24. Bd2 {[%clk 0:00:41.9]} 24... Rhe8 {[%clk 0:01:20.5]} 25.
Rae1 {[%clk 0:00:26.8]} 25... Rxe2 {[%clk 0:01:11.8]} 26. Rxe2 {[%clk
0:00:27.7]} 26... Rxa2 {[%clk 0:01:11.8]} 27. Nd6 {[%clk 0:00:27.7]} 27... Rxb2
{[%clk 0:00:58.7]} 28. Nh7+ {[%clk 0:00:28]} 28... Kg7 {[%clk 0:00:56.7]} 29.
Ng5 {[%clk 0:00:26.1]} 29... Nc3 {[%clk 0:00:27.3]} 30. Rf2 {[%clk 0:00:20.4]}
30... Ne5 {[%clk 0:00:16.8]} 31. Nf3 {[%clk 0:00:13.7]} 31... Nd3 {[%clk
0:00:09.9]} 32. Nxd4 {[%clk 0:00:11.8]} 32... Nxf2 {[%clk 0:00:08.7]} 33. Bxc3
{[%clk 0:00:12.2]} 33... Ra2 {[%clk 0:00:07.2]} 34. Ne2+ {[%clk 0:00:10.3]}
34... Kh7 {[%clk 0:00:05.5]} 35. Kxf2 {[%clk 0:00:11.2]} 35... Bc6 {[%clk
0:00:04.4]} 36. Nf7 {[%clk 0:00:09.3]} 36... Bxg2 {[%clk 0:00:04.3]} 37. Ng5+
{[%clk 0:00:09.5]} 37... Kh6 {[%clk 0:00:04.2]} 38. Nf7+ {[%clk 0:00:10]} 38...
Kh7 {[%clk 0:00:04.7]} 39. Ng5+ {[%clk 0:00:10.4]} 39... Kg8 {[%clk 0:00:05.3]}
40. h4 {[%clk 0:00:11.3]} 40... Bd5 {[%clk 0:00:04.4]} 41. Ke3 {[%clk
0:00:11.4]} 41... Bc4 {[%clk 0:00:04.3]} 42. Nd4 {[%clk 0:00:11.4]} 42... Ra3
{[%clk 0:00:04.6]} 43. Kd2 {[%clk 0:00:11.7]} 43... Ra2+ {[%clk 0:00:05.2]} 44.
Kc1 {[%clk 0:00:12]} 44... Rh2 {[%clk 0:00:05.3]} 45. Bb4 {[%clk 0:00:10]} 45...
Rxh4 {[%clk 0:00:03.2]} 46. Ndf3 {[%clk 0:00:10.6]} 46... Rh1+ {[%clk
0:00:03.2]} 47. Kd2 {[%clk 0:00:10.3]} 47... b5 {[%clk 0:00:04.1]} 48. Kc3
{[%clk 0:00:10.7]} 48... Kg7 {[%clk 0:00:03.1]} 49. Kd4 {[%clk 0:00:10.7]} 49...
Kf6 {[%clk 0:00:03.5]} 50. Nh7+ {[%clk 0:00:09]} 50... Kg7 {[%clk 0:00:03.2]}
51. Nhg5 {[%clk 0:00:09.9]} 51... Rd1+ {[%clk 0:00:03.6]} 52. Ke5 {[%clk
0:00:09.2]} 52... Rd5+ {[%clk 0:00:03.7]} 53. Kf4 {[%clk 0:00:08.9]} 53... Rd7
{[%clk 0:00:02.9]} 54. Bc3+ {[%clk 0:00:09]} 54... Kg8 {[%clk 0:00:02.8]} 55.
Nh3 {[%clk 0:00:09.9]} 55... Rd3 {[%clk 0:00:02.9]} 56. Kg3 {[%clk 0:00:09.7]}
56... Bd5 {[%clk 0:00:03]} 57. Nf4 {[%clk 0:00:10.6]} 57... Rxf3+ {[%clk
0:00:03.1]} 58. Kh4 {[%clk 0:00:11.4]} 58... Rxf4+ {[%clk 0:00:03.8]} 59. Kg5
{[%clk 0:00:12.3]} 59... Rg4+ {[%clk 0:00:04.4]} 60. Kf6 {[%clk 0:00:13]} 60...
Bc4 {[%clk 0:00:04.9]} 61. Be5 {[%clk 0:00:13.6]} 61... Rg1 {[%clk 0:00:04.6]}
62. Bd6 {[%clk 0:00:14.5]} 62... h4 {[%clk 0:00:05]} 63. Ke5 {[%clk 0:00:15.1]}
63... h3 {[%clk 0:00:05.9]} 64. Kf4 {[%clk 0:00:16]} 64... Rh1 {[%clk
0:00:06.1]} 65. Bc5 {[%clk 0:00:16.2]} 65... Bf1 {[%clk 0:00:06.4]} 66. Ke5
{[%clk 0:00:17.1]} 66... Bg2 {[%clk 0:00:07.3]} 67. Kf6 {[%clk 0:00:18]} 67...
h2 {[%clk 0:00:07.6]} 68. Bd6 {[%clk 0:00:18.4]} 68... b4 {[%clk 0:00:07.6]} 69.
Bxh2 {[%clk 0:00:19.3]} 69... Rxh2 {[%clk 0:00:07.6]} 70. Kg5 {[%clk 0:00:20.2]}
70... Rh1 {[%clk 0:00:07.2]} 71. Kf6 {[%clk 0:00:21.1]} 71... Be4 {[%clk
0:00:07.4]} 72. Kg5 {[%clk 0:00:22]} 72... b3 {[%clk 0:00:07.7]} 73. Kf6 {[%clk
0:00:22.9]} 73... b2 {[%clk 0:00:08.3]} 74. Kg5 {[%clk 0:00:23.8]} 74... b1=Q
{[%clk 0:00:08.6]} 75. Kf6 {[%clk 0:00:24.7]} 75... Qb2+ {[%clk 0:00:08.9]} 76.
Ke7 {[%clk 0:00:25.6]} 76... Qb4+ {[%clk 0:00:08.8]} 77. Kf6 {[%clk 0:00:26.5]}
77... Qd4+ {[%clk 0:00:08.6]} 78. Ke7 {[%clk 0:00:27.4]} 78... Qc5+ {[%clk
0:00:08.3]} 79. Ke8 {[%clk 0:00:28.3]} 79... Bc6+ {[%clk 0:00:07.4]} 80. Kd8
{[%clk 0:00:28.1]} 80... Qd6+ {[%clk 0:00:07.7]} 81. Kc8 {[%clk 0:00:29]} 81...
Qd7+ {[%clk 0:00:08.1]} 82. Kb8 {[%clk 0:00:29.3]} 82... Qb7# {[%clk 0:00:08.7]}
0-1

[Event "*** Titled Tuesday Blitz"]
[Site "Chess.com"]
[Date "2021.02.09"]
[Round "6"]
[White "PawnEatingZombie"]
[Black "DanielTitichoca"]
[Result "1/2-1/2"]
[WhiteElo "2116"]
[BlackElo "2287"]
[TimeControl "180+1"]
[EndTime "11:10:03 PST"]
[Termination "Game drawn by repetition"]

1. d4 {[%clk 0:03:00.9]} 1... c5 {[%clk 0:03:00.9]} 2. d5 {[%clk 0:03:00.5]}
2... d6 {[%clk 0:03:00.5]} 3. c4 {[%clk 0:03:00.2]} 3... e5 {[%clk 0:03:00]} 4.
Nc3 {[%clk 0:03:00.4]} 4... Nf6 {[%clk 0:02:55.5]} 5. e4 {[%clk 0:03:00.4]} 5...
Be7 {[%clk 0:02:56.4]} 6. Bd3 {[%clk 0:03:00.2]} 6... O-O {[%clk 0:02:57.3]} 7.
Nge2 {[%clk 0:03:00.5]} 7... Ne8 {[%clk 0:02:56.6]} 8. O-O {[%clk 0:03:00.5]}
8... g6 {[%clk 0:02:54.5]} 9. Be3 {[%clk 0:02:58.8]} 9... Bg5 {[%clk 0:02:53.5]}
10. Qd2 {[%clk 0:02:58]} 10... Bxe3 {[%clk 0:02:51.7]} 11. Qxe3 {[%clk
0:02:58.5]} 11... Ng7 {[%clk 0:02:49.9]} 12. f4 {[%clk 0:02:51]} 12... f6 {[%clk
0:02:48.1]} 13. fxe5 {[%clk 0:02:27.6]} 13... fxe5 {[%clk 0:02:48.1]} 14. Rxf8+
{[%clk 0:02:27.5]} 14... Qxf8 {[%clk 0:02:49]} 15. Rf1 {[%clk 0:02:27.3]} 15...
Qe7 {[%clk 0:02:49.5]} 16. Kh1 {[%clk 0:02:11.5]} 16... Na6 {[%clk 0:02:47.7]}
17. Ng1 {[%clk 0:02:10.5]} 17... Nc7 {[%clk 0:02:46.3]} 18. Nf3 {[%clk
0:02:08.6]} 18... Bd7 {[%clk 0:02:46.4]} 19. a4 {[%clk 0:02:08.4]} 19... b6
{[%clk 0:02:44.6]} 20. b3 {[%clk 0:02:06.8]} 20... Rf8 {[%clk 0:02:43.1]} 21.
Ng5 {[%clk 0:01:44]} 21... Rxf1+ {[%clk 0:02:36.6]} 22. Bxf1 {[%clk 0:01:44.9]}
22... h6 {[%clk 0:02:36.9]} 23. Nf3 {[%clk 0:01:43]} 23... Kh7 {[%clk
0:02:37.5]} 24. Be2 {[%clk 0:01:42.2]} 24... Qf6 {[%clk 0:02:35.9]} 25. Kg1
{[%clk 0:01:41.7]} 25... g5 {[%clk 0:02:31.2]} 26. h3 {[%clk 0:01:39.2]} 26...
Be8 {[%clk 0:02:28.5]} 27. Nh2 {[%clk 0:01:38.4]} 27... h5 {[%clk 0:02:24.6]}
28. Nd1 {[%clk 0:01:19.5]} 28... Qf4 {[%clk 0:02:15.6]} 29. g3 {[%clk
0:01:14.8]} 29... Qxe3+ {[%clk 0:02:13.3]} 30. Nxe3 {[%clk 0:01:15.7]} 30... Bg6
{[%clk 0:02:13]} 31. Bd3 {[%clk 0:01:08.8]} 31... Nce8 {[%clk 0:02:10.9]} 32.
Nf3 {[%clk 0:01:05.7]} 32... Kh6 {[%clk 0:02:10.2]} 33. h4 {[%clk 0:01:00.8]}
33... g4 {[%clk 0:02:08.9]} 34. Ng5 {[%clk 0:00:57.8]} 34... Nf6 {[%clk
0:02:06.7]} 35. Nd1 {[%clk 0:00:51.5]} 35... Nh7 {[%clk 0:01:59]} 36. Nxh7
{[%clk 0:00:51.3]} 36... Kxh7 {[%clk 0:01:59.9]} 37. Nc3 {[%clk 0:00:51.6]}
37... a6 {[%clk 0:01:58.7]} 38. Kf2 {[%clk 0:00:51.3]} 38... Ne8 {[%clk
0:01:57.6]} 39. Ke3 {[%clk 0:00:51.4]} 39... Nf6 {[%clk 0:01:56.9]} 40. Na2
{[%clk 0:00:47.9]} 40... Kg7 {[%clk 0:01:55.8]} 41. b4 {[%clk 0:00:47.5]} 41...
Nd7 {[%clk 0:01:47.8]} 42. b5 {[%clk 0:00:41.7]} 42... a5 {[%clk 0:01:43.6]} 43.
Nc3 {[%clk 0:00:41]} 43... Kf6 {[%clk 0:01:41]} 44. Nd1 {[%clk 0:00:40.3]} 44...
Ke7 {[%clk 0:01:37]} 45. Nf2 {[%clk 0:00:40.7]} 45... Nf6 {[%clk 0:01:37.3]} 46.
Nd1 {[%clk 0:00:41.4]} 46... Bf7 {[%clk 0:01:35.8]} 47. Nf2 {[%clk 0:00:41.7]}
47... Bg6 {[%clk 0:01:35.9]} 48. Nd1 {[%clk 0:00:42.2]} 48... Bh7 {[%clk
0:01:36.1]} 49. Nf2 {[%clk 0:00:42.6]} 49... Ng8 {[%clk 0:01:35.8]} 50. Nd1
{[%clk 0:00:42.5]} 50... Nh6 {[%clk 0:01:36.3]} 51. Nf2 {[%clk 0:00:42.2]} 51...
Nf7 {[%clk 0:01:36]} 52. Nd1 {[%clk 0:00:42.7]} 52... Kf6 {[%clk 0:01:35.2]} 53.
Nf2 {[%clk 0:00:43.2]} 53... Bg6 {[%clk 0:01:31.7]} 54. Nd1 {[%clk 0:00:43.5]}
54... Nh6 {[%clk 0:01:31.5]} 55. Nf2 {[%clk 0:00:43.8]} 55... Nf7 {[%clk
0:01:32]} 56. Nd1 {[%clk 0:00:44]} 56... Nh8 {[%clk 0:01:32.4]} 57. Nf2 {[%clk
0:00:44.4]} 57... Be8 {[%clk 0:01:33.3]} 58. Nd1 {[%clk 0:00:44.8]} 58... Ng6
{[%clk 0:01:34]} 59. Nf2 {[%clk 0:00:45.4]} 59... Bd7 {[%clk 0:01:24.1]} 60. Nd1
{[%clk 0:00:45.7]} 60... Bc8 {[%clk 0:01:23.6]} 61. Kf2 {[%clk 0:00:46.2]} 61...
Nf4 {[%clk 0:01:10.9]} 62. gxf4 {[%clk 0:00:44.8]} 62... exf4 {[%clk 0:01:11.8]}
63. Nc3 {[%clk 0:00:34.7]} 63... Ke5 {[%clk 0:01:07.5]} 64. Ne2 {[%clk
0:00:35.2]} 64... g3+ {[%clk 0:01:02]} 65. Nxg3 {[%clk 0:00:26.9]} 65... fxg3+
{[%clk 0:01:00.9]} 66. Kxg3 {[%clk 0:00:27.3]} 66... Kd4 {[%clk 0:01:00.1]} 67.
Be2 {[%clk 0:00:26]} 67... Kxe4 {[%clk 0:00:59.6]} 68. Bxh5 {[%clk 0:00:25.8]}
68... Bf5 {[%clk 0:00:58.7]} 69. Be2 {[%clk 0:00:25.2]} 69... Kd4 {[%clk
0:00:59.1]} 70. Kf4 {[%clk 0:00:23.3]} 70... Bh7 {[%clk 0:00:56.5]} 71. h5
{[%clk 0:00:21.9]} 71... Kc3 {[%clk 0:00:57]} 72. Kg5 {[%clk 0:00:19.5]} 72...
Kb4 {[%clk 0:00:56.3]} 73. Bg4 {[%clk 0:00:15.4]} 73... Kxa4 {[%clk 0:00:52.2]}
74. Bf5 {[%clk 0:00:15.5]} 74... Bg8 {[%clk 0:00:52.6]} 75. Be6 {[%clk
0:00:15.6]} 75... Bh7 {[%clk 0:00:51.3]} 76. h6 {[%clk 0:00:14.7]} 76... Kb4
{[%clk 0:00:50]} 77. Bf5 {[%clk 0:00:14.2]} 77... Bg8 {[%clk 0:00:48.7]} 78. Be6
{[%clk 0:00:13.3]} 78... Bh7 {[%clk 0:00:47.7]} 79. Bf5 {[%clk 0:00:13.1]} 79...
Bg8 {[%clk 0:00:28.9]} 80. Be6 {[%clk 0:00:12.1]} 80... Bh7 {[%clk 0:00:17.5]}
1/2-1/2

[Event "*** Titled Tuesday Blitz"]
[Site "Chess.com"]
[Date "2021.02.09"]
[Round "6"]
[White "Angry_Twin"]
[Black "BilodeauA"]
[Result "0-1"]
[WhiteElo "2846"]
[BlackElo "2909"]
[TimeControl "180+1"]
[EndTime "11:10:07 PST"]
[Termination "BilodeauA won by resignation"]

1. e4 {[%clk 0:03:00.9]} 1... e5 {[%clk 0:02:58.9]} 2. Nf3 {[%clk 0:03:01.1]}
2... Nc6 {[%clk 0:02:59.7]} 3. Bc4 {[%clk 0:03:00.8]} 3... Bc5 {[%clk
0:02:59.2]} 4. c3 {[%clk 0:03:00.8]} 4... Nf6 {[%clk 0:02:59.5]} 5. d3 {[%clk
0:03:01.5]} 5... d6 {[%clk 0:02:59.8]} 6. O-O {[%clk 0:03:01.3]} 6... O-O {[%clk
0:02:58.6]} 7. Re1 {[%clk 0:02:59.9]} 7... h6 {[%clk 0:02:57.2]} 8. h3 {[%clk
0:02:57.5]} 8... a5 {[%clk 0:02:56.5]} 9. Nbd2 {[%clk 0:02:57.5]} 9... Be6
{[%clk 0:02:54]} 10. Bb5 {[%clk 0:02:57.8]} 10... Qb8 {[%clk 0:02:54.1]} 11. Nf1
{[%clk 0:02:57.4]} 11... Qa7 {[%clk 0:02:54.6]} 12. Be3 {[%clk 0:02:57.8]} 12...
Bxe3 {[%clk 0:02:55.1]} 13. Nxe3 {[%clk 0:02:58.3]} 13... Ne7 {[%clk 0:02:55.7]}
14. a4 {[%clk 0:02:57.7]} 14... Ng6 {[%clk 0:02:54.7]} 15. Bc4 {[%clk
0:02:53.5]} 15... Rfe8 {[%clk 0:02:54.7]} 16. g3 {[%clk 0:02:53.2]} 16... Bxh3
{[%clk 0:02:43.8]} 17. Nf5 {[%clk 0:02:34.2]} 17... Bxf5 {[%clk 0:02:33]} 18.
exf5 {[%clk 0:02:35.1]} 18... Ne7 {[%clk 0:02:32.3]} 19. Nh4 {[%clk 0:02:34.4]}
19... d5 {[%clk 0:02:17.9]} 20. Ba2 {[%clk 0:02:33.4]} 20... Nc6 {[%clk
0:02:18.3]} 21. Qf3 {[%clk 0:02:33.1]} 21... Rad8 {[%clk 0:02:17.9]} 22. Rad1
{[%clk 0:02:31.2]} 22... Qb6 {[%clk 0:02:15.9]} 23. Re2 {[%clk 0:02:28.4]} 23...
e4 {[%clk 0:02:14.8]} 24. dxe4 {[%clk 0:02:28.5]} 24... dxe4 {[%clk 0:02:12.5]}
25. Rxd8 {[%clk 0:02:28.1]} 25... Rxd8 {[%clk 0:02:06.3]} 26. Qf4 {[%clk
0:02:28.4]} 26... Ne7 {[%clk 0:01:41.7]} 27. Ng6 {[%clk 0:02:24.8]} 27... Ned5
{[%clk 0:01:31]} 28. Bxd5 {[%clk 0:02:19]} 28... Nxd5 {[%clk 0:01:31.9]} 29. Qh4
{[%clk 0:02:18.9]} 29... Qf6 {[%clk 0:01:25.2]} 30. Qxf6 {[%clk 0:02:02]} 30...
Nxf6 {[%clk 0:01:26.1]} 31. Nf4 {[%clk 0:02:01]} 31... Re8 {[%clk 0:01:19.5]}
32. Rd2 {[%clk 0:01:58.5]} 32... Re5 {[%clk 0:01:19.4]} 33. Rd8+ {[%clk
0:01:58.4]} 33... Kh7 {[%clk 0:01:19.8]} 34. Rc8 {[%clk 0:01:56.6]} 34... e3
{[%clk 0:01:02.6]} 35. fxe3 {[%clk 0:01:54.5]} 35... Rxe3 {[%clk 0:01:02.9]} 36.
Kg2 {[%clk 0:01:38.3]} 36... Re7 {[%clk 0:00:58.7]} 37. Kf3 {[%clk 0:01:36.1]}
37... h5 {[%clk 0:00:58.3]} 38. b4 {[%clk 0:01:21.8]} 38... b6 {[%clk
0:00:39.1]} 39. b5 {[%clk 0:00:46.3]} 39... Kh6 {[%clk 0:00:38.1]} 40. Nh3
{[%clk 0:00:45.6]} 40... Re5 {[%clk 0:00:35.6]} 41. Rh8+ {[%clk 0:00:43.6]}
41... Nh7 {[%clk 0:00:34.9]} 42. Kf4 {[%clk 0:00:17.9]} 42... Rc5 {[%clk
0:00:35.1]} 43. Ng5 {[%clk 0:00:17.7]} 43... Rc4+ {[%clk 0:00:34.1]} 44. Ne4
{[%clk 0:00:18]} 44... Rxa4 {[%clk 0:00:21.6]} 45. f6 {[%clk 0:00:16.5]} 45...
gxf6 {[%clk 0:00:17.3]} 46. Kf5 {[%clk 0:00:16.5]} 46... Kg7 {[%clk 0:00:17.6]}
47. Rc8 {[%clk 0:00:15.8]} 47... Rc4 {[%clk 0:00:18.3]} 48. Ra8 {[%clk
0:00:05.4]} 48... Ng5 {[%clk 0:00:18.6]} 49. Nf2 {[%clk 0:00:03.6]} 49... Rc5+
{[%clk 0:00:17.7]} 50. Kf4 {[%clk 0:00:04]} 50... Ne6+ {[%clk 0:00:18.4]} 51.
Ke4 {[%clk 0:00:03.1]} 51... Rxb5 {[%clk 0:00:19.3]} 52. g4 {[%clk 0:00:03.4]}
52... Re5+ {[%clk 0:00:19.5]} 53. Kf3 {[%clk 0:00:03]} 53... hxg4+ {[%clk
0:00:17.9]} 54. Nxg4 {[%clk 0:00:03.9]} 54... Rc5 {[%clk 0:00:18.8]} 55. Ne3
{[%clk 0:00:03.7]} 55... Rxc3 {[%clk 0:00:18.7]} 56. Ke4 {[%clk 0:00:04.3]}
56... Ng5+ {[%clk 0:00:17.8]} 57. Kd4 {[%clk 0:00:04.7]} 57... Rc1 {[%clk
0:00:16.3]} 58. Nf5+ {[%clk 0:00:04.9]} 58... Kg6 {[%clk 0:00:16.9]} 59. Ne7+
{[%clk 0:00:04.1]} 59... Kh5 {[%clk 0:00:17.4]} 60. Rg8 {[%clk 0:00:03.4]} 60...
Kg4 {[%clk 0:00:17.2]} 61. Nd5 {[%clk 0:00:03.7]} 61... Rd1+ {[%clk 0:00:17.7]}
62. Kc4 {[%clk 0:00:04.1]} 62... Rc1+ {[%clk 0:00:14.1]} 63. Kd3 {[%clk
0:00:03.4]} 63... Kf5 {[%clk 0:00:11]} 64. Ne3+ {[%clk 0:00:03.5]} 64... Ke6
{[%clk 0:00:11.6]} 65. Re8+ {[%clk 0:00:03.8]} 65... Kd7 {[%clk 0:00:12.2]} 66.
Rf8 {[%clk 0:00:03]} 66... a4 {[%clk 0:00:12.2]} 67. Ng4 {[%clk 0:00:03.4]}
67... Ke7 {[%clk 0:00:12]} 68. Ra8 {[%clk 0:00:03.6]} 68... Ne6 {[%clk
0:00:12.4]} 69. Ne3 {[%clk 0:00:03.9]} 69... Nc5+ {[%clk 0:00:11.4]} 70. Kd2
{[%clk 0:00:04.1]} 70... Rh1 {[%clk 0:00:12.1]} 71. Nd5+ {[%clk 0:00:03.7]}
71... Kd6 {[%clk 0:00:11.8]} 72. Rd8+ {[%clk 0:00:03.5]} 72... Kc6 {[%clk
0:00:10.8]} 73. Nxf6 {[%clk 0:00:04.4]} 73... a3 {[%clk 0:00:10.9]} 74. Ra8
{[%clk 0:00:04.6]} 74... a2 {[%clk 0:00:11.6]} 75. Kc3 {[%clk 0:00:05.2]} 75...
a1=Q+ {[%clk 0:00:11.9]} 0-1

[Event "*** Titled Tuesday Blitz"]
[Site "Chess.com"]
[Date "2021.02.09"]
[Round "6"]
[White "Margency"]
[Black "Sokoloco"]
[Result "1-0"]
[WhiteElo "2649"]
[BlackElo "2472"]
[TimeControl "180+1"]
[EndTime "11:10:12 PST"]
[Termination "Margency won by resignation"]

1. e4 {[%clk 0:03:00.9]} 1... g6 {[%clk 0:02:52.2]} 2. d4 {[%clk 0:03:00.5]}
2... Bg7 {[%clk 0:02:51.5]} 3. Nc3 {[%clk 0:03:01]} 3... d6 {[%clk 0:02:52]} 4.
Be3 {[%clk 0:03:00.1]} 4... a6 {[%clk 0:02:52.3]} 5. f4 {[%clk 0:03:00.3]} 5...
b5 {[%clk 0:02:51.8]} 6. Bd3 {[%clk 0:03:00.2]} 6... Bb7 {[%clk 0:02:51.5]} 7.
Nf3 {[%clk 0:03:00.4]} 7... Nd7 {[%clk 0:02:52.1]} 8. e5 {[%clk 0:03:00.1]} 8...
e6 {[%clk 0:02:40.8]} 9. Ne4 {[%clk 0:02:54.1]} 9... d5 {[%clk 0:02:32.2]} 10.
Ned2 {[%clk 0:02:41.3]} 10... Ne7 {[%clk 0:02:26.7]} 11. Nb3 {[%clk 0:02:35.1]}
11... Nf5 {[%clk 0:02:12.9]} 12. Bf2 {[%clk 0:02:34.5]} 12... h5 {[%clk
0:02:12.3]} 13. Qe2 {[%clk 0:02:32.4]} 13... Bf8 {[%clk 0:02:03.6]} 14. c3
{[%clk 0:02:18.7]} 14... c6 {[%clk 0:01:37.8]} 15. g3 {[%clk 0:02:12.1]} 15...
Qb6 {[%clk 0:01:36.3]} 16. O-O {[%clk 0:01:59.2]} 16... a5 {[%clk 0:00:59.7]}
17. a3 {[%clk 0:01:35.7]} 17... a4 {[%clk 0:00:45.8]} 18. Nbd2 {[%clk
0:01:34.5]} 18... Kd8 {[%clk 0:00:43.1]} 19. Ng5 {[%clk 0:01:29.7]} 19... Nh6
{[%clk 0:00:38.6]} 20. Ndf3 {[%clk 0:01:29.4]} 20... Be7 {[%clk 0:00:34.2]} 21.
h3 {[%clk 0:01:28]} 21... Kc7 {[%clk 0:00:33.5]} 22. Kg2 {[%clk 0:01:20.4]}
22... Rag8 {[%clk 0:00:29.1]} 23. Bg1 {[%clk 0:01:16.6]} 23... Rg7 {[%clk
0:00:29]} 24. Rae1 {[%clk 0:01:13.3]} 24... Bc8 {[%clk 0:00:27]} 25. Qd2 {[%clk
0:01:13]} 25... Nf8 {[%clk 0:00:25.4]} 26. Bc2 {[%clk 0:01:09.7]} 26... Nh7
{[%clk 0:00:24.1]} 27. Re2 {[%clk 0:00:58.3]} 27... Nxg5 {[%clk 0:00:23.1]} 28.
fxg5 {[%clk 0:00:58.3]} 28... Nf5 {[%clk 0:00:20.3]} 29. Bf2 {[%clk 0:00:51.7]}
29... h4 {[%clk 0:00:18.2]} 30. g4 {[%clk 0:00:51.6]} 30... Ng3 {[%clk
0:00:16.8]} 31. Bxg3 {[%clk 0:00:51.7]} 31... hxg3 {[%clk 0:00:17.7]} 32. Kxg3
{[%clk 0:00:49.9]} 32... Bd7 {[%clk 0:00:17.2]} 33. Rh1 {[%clk 0:00:49.8]} 33...
Rgh7 {[%clk 0:00:16.5]} 34. Rf2 {[%clk 0:00:49.7]} 34... Be8 {[%clk 0:00:15.4]}
35. Qf4 {[%clk 0:00:49.1]} 35... Qb8 {[%clk 0:00:15.2]} 36. h4 {[%clk
0:00:48.7]} 36... Qd8 {[%clk 0:00:15.7]} 37. Rfh2 {[%clk 0:00:48.6]} 37... Rg7
{[%clk 0:00:11.9]} 38. Bd3 {[%clk 0:00:44.9]} 38... Rhg8 {[%clk 0:00:11.7]} 39.
Kf2 {[%clk 0:00:43]} 39... Kb6 {[%clk 0:00:11.9]} 40. Qe3 {[%clk 0:00:42.4]}
40... c5 {[%clk 0:00:12.2]} 41. dxc5+ {[%clk 0:00:40.3]} 41... Bxc5 {[%clk
0:00:12.2]} 42. Nd4 {[%clk 0:00:40.9]} 42... Qc7 {[%clk 0:00:12.2]} 43. Ke1
{[%clk 0:00:40]} 43... Ka5 {[%clk 0:00:09.7]} 44. Kd2 {[%clk 0:00:39.6]} 44...
Kb6 {[%clk 0:00:08.9]} 45. Rf1 {[%clk 0:00:38.9]} 45... Rh7 {[%clk 0:00:08]} 46.
Rf6 {[%clk 0:00:37.5]} 46... Rgh8 {[%clk 0:00:08.2]} 47. Qf2 {[%clk 0:00:36.4]}
47... Qxe5 {[%clk 0:00:07.4]} 48. Rh3 {[%clk 0:00:22.8]} 48... Rxh4 {[%clk
0:00:06.1]} 49. Rxh4 {[%clk 0:00:20.4]} 49... Qxg5+ {[%clk 0:00:06.7]} 50. Qf4
{[%clk 0:00:19.1]} 50... Qxf4+ {[%clk 0:00:06.6]} 51. Rxf4 {[%clk 0:00:19.3]}
51... Bxd4 {[%clk 0:00:05.5]} 52. Rxh8 {[%clk 0:00:15.1]} 52... Bxh8 {[%clk
0:00:06.4]} 53. g5 {[%clk 0:00:16]} 53... Be5 {[%clk 0:00:04.5]} 54. Rh4 {[%clk
0:00:16.1]} 54... Kc7 {[%clk 0:00:04.9]} 55. Ke3 {[%clk 0:00:16.5]} 55... Kd8
{[%clk 0:00:04.8]} 56. Rh8 {[%clk 0:00:16.6]} 56... Ke7 {[%clk 0:00:05.5]} 57.
Rh7 {[%clk 0:00:14.2]} 57... Bc6 {[%clk 0:00:05.3]} 58. Bxg6 {[%clk 0:00:13.3]}
58... Be8 {[%clk 0:00:05.9]} 59. Bxf7 {[%clk 0:00:13.2]} 59... Bxf7 {[%clk
0:00:04]} 60. g6 {[%clk 0:00:13.8]} 60... Kf6 {[%clk 0:00:03.4]} 61. Rxf7+
{[%clk 0:00:13.8]} 61... Kxg6 {[%clk 0:00:03.7]} 62. Rb7 {[%clk 0:00:14.3]}
62... Kf5 {[%clk 0:00:02]} 63. Rxb5 {[%clk 0:00:14.4]} 63... Bf4+ {[%clk
0:00:02.9]} 64. Kd3 {[%clk 0:00:13.9]} 64... Bc1 {[%clk 0:00:03.6]} 65. Kc2
{[%clk 0:00:13.3]} 65... Bg5 {[%clk 0:00:02.9]} 66. Ra5 {[%clk 0:00:13.1]} 66...
e5 {[%clk 0:00:02.7]} 67. Rxd5 {[%clk 0:00:13.2]} 67... Kf4 {[%clk 0:00:02.6]}
68. Kd3 {[%clk 0:00:11.5]} 68... e4+ {[%clk 0:00:02.4]} 69. Ke2 {[%clk
0:00:11.8]} 69... Bf6 {[%clk 0:00:02.1]} 70. Ra5 {[%clk 0:00:11.5]} 70... Bh4
{[%clk 0:00:01.5]} 71. Rxa4 {[%clk 0:00:11.8]} 71... Bg5 {[%clk 0:00:02.4]} 72.
Rb4 {[%clk 0:00:11.7]} 72... Kf5 {[%clk 0:00:03.3]} 73. a4 {[%clk 0:00:11.9]}
73... Be7 {[%clk 0:00:04]} 74. Rb5+ {[%clk 0:00:12.2]} 74... Kf4 {[%clk
0:00:04.6]} 75. a5 {[%clk 0:00:12.7]} 75... Bd8 {[%clk 0:00:05.2]} 76. a6 {[%clk
0:00:13]} 1-0